fUSD/lending_fUSD_20260128
["ID","MTS","AMOUNT","RATE_DAILY","PERIOD"]
[403835477,1769580640635,-200.0,0.00015832,2]
[403835478,1769580640644,-200.0,0.00015832,2]
[403835479,1769580640653,-500.0,0.00015832,2]
[403835480,1769580640662,-500.0,0.00015832,2]
[403835481,1769580640672,-233.51889341,0.00015834,2]
[403835482,1769580640681,-530.67098779,0.00015874,2]
[403835483,1769580640690,-530.67098779,0.00015874,2]
[403835484,1769580640700,-530.67098779,0.00015874,2]
[403835485,1769580640709,-530.67098779,0.00015874,2]
[403835486,1769580640718,-530.67098779,0.00015874,2]
[403835487,1769580640727,-530.67098779,0.00015874,2]
[403835488,1769580640736,-530.67098779,0.00015874,2]
[403835489,1769580640746,-530.67098779,0.00015874,2]
[403835490,1769580640755,-530.67098779,0.00015874,2]
[403835491,1769580640764,-530.67098779,0.00015874,2]
[403835492,1769580640774,-530.67098779,0.00015874,2]
[403835493,1769580640783,-530.67098779,0.00015874,2]
[403835494,1769580640793,-530.67098779,0.00015874,2]
[403835495,1769580640802,-530.67098779,0.00015874,2]
[403835496,1769580640811,-530.67098779,0.00015874,2]
[403835497,1769580640820,-530.67098779,0.00015874,2]
[403835498,1769580640829,-530.67098779,0.00015874,2]
[403835499,1769580640838,-530.67098779,0.00015874,2]
[403835500,1769580640847,-530.67098779,0.00015874,2]
[403835501,1769580640856,-530.67098779,0.00015874,2]
[403835502,1769580640865,-530.67098779,0.00015874,2]
[403835503,1769580640875,-530.67098779,0.00015874,2]
[403835504,1769580640884,-530.67098779,0.00015874,2]
[403835505,1769580640893,-530.67098779,0.00015874,2]
[403835506,1769580640902,-530.67098779,0.00015874,2]
[403835507,1769580640911,-530.67098779,0.00015874,2]
[403835508,1769580640921,-530.67098779,0.00015874,2]
[403835509,1769580640930,-530.67098779,0.00015874,2]
[403835510,1769580640939,-530.67098779,0.00015874,2]
[403835511,1769580640948,-530.67098779,0.00015874,2]
[403835512,1769580640958,-530.67098779,0.00015874,2]
[403835513,1769580640968,-530.67098779,0.00015874,2]
[403835514,1769580640979,-530.67098779,0.00015874,2]
[403835515,1769580640988,-530.67098779,0.00015874,2]
[403835516,1769580640998,-530.67098779,0.00015874,2]
[403835517,1769580641007,-530.67098779,0.00015874,2]
[403835518,1769580641017,-530.67098779,0.00015874,2]
[403835519,1769580641026,-530.67098779,0.00015874,2]
[403835520,1769580641035,-530.67098779,0.00015874,2]
[403835521,1769580641046,-530.67098779,0.00015874,2]
[403835522,1769580641055,-530.67098779,0.00015874,2]
[403835523,1769580641064,-530.67098779,0.00015874,2]
[403835524,1769580641073,-530.67098779,0.00015874,2]
[403835525,1769580641083,-530.67098779,0.00015874,2]
[403835526,1769580641092,-520.40096715,0.00015874,2]
[403835527,1769580641105,-720.65,0.00015875,2]
[403835528,1769580641115,-200.0,0.00015887,2]
[403835529,1769580641124,-200.0,0.00015887,2]
[403835530,1769580641133,-558.0,0.00015887,2]
[403835531,1769580641145,-200.0,0.00015887,2]
[403835532,1769580641154,-500.0,0.00015887,2]
[403835533,1769580641163,-200.0,0.00015887,2]
[403835534,1769580641173,-500.0,0.00015887,2]
[403835535,1769580641182,-376.50115977,0.00015887,2]
[403835536,1769580641192,-242.15909246,0.00015889,2]
[403835537,1769580641200,-558.0,0.00015941,2]
[403835538,1769580641210,-500.0,0.00015941,2]
[403835539,1769580641219,-500.0,0.00015941,2]
[403835540,1769580641228,-251.11897888,0.00015944,2]
[403835541,1769580641237,-158.72,0.00015988,2]
[403835542,1769580641246,-558.0,0.00015996,2]
[403835543,1769580641257,-500.0,0.00015996,2]
[403835544,1769580641268,-500.0,0.00015996,2]
[403835545,1769580641277,-260.4103811,0.00015999,2]
[403835546,1769580641287,-10451.7799722,0.00016005,2]
[403835547,1769580641298,-10694.12171155,0.00016005,2]
[403835548,1769580641307,-449.9456232,0.00016023,2]
[403835549,1769580641317,-275.2411118,0.0001605,2]
[403835550,1769580641326,-558.0,0.00016051,2]
[403835551,1769580641335,-500.0,0.00016051,2]
[403835552,1769580641344,-500.0,0.00016051,2]
[403835553,1769580641353,-207.69124521,0.00016051,2]
[403835554,1769580641362,-1000.0,0.00016051,2]
[403835555,1769580641371,-500.0,0.00016051,2]
[403835556,1769580641379,-1000.0,0.00016051,2]
[403835557,1769580641389,-156.804372,0.00016051,2]
[403835558,1769580641397,-1000.0,0.00016051,2]
[403835559,1769580641406,-1000.0,0.00016051,2]
[403835560,1769580641415,-1000.0,0.00016051,2]
[403835561,1769580641425,-1000.0,0.00016051,2]
[403835562,1769580641434,-1000.0,0.00016051,2]
[403835563,1769580641445,-1000.0,0.00016051,2]
[403835564,1769580641453,-206.24263098,0.00016051,2]
[403835565,1769580641463,-721.12765535,0.00016051,2]
[403835566,1769580641472,-1000.0,0.00016051,2]
[403835567,1769580641482,-1000.0,0.00016051,2]
[403835568,1769580641491,-500.0,0.00016051,2]
[403835569,1769580641500,-1000.0,0.00016051,2]
[403835570,1769580641509,-250.0,0.00016051,2]
[403835571,1769580641518,-500.0,0.00016051,2]
[403835572,1769580641528,-250.0,0.00016051,2]
[403835573,1769580641539,-500.0,0.00016051,2]
[403835574,1769580641549,-250.0,0.00016051,2]
[403835575,1769580641560,-522.5850038,0.00016051,2]
[403835576,1769580641569,-250.0,0.00016051,2]
[403835577,1769580641578,-250.0,0.00016051,2]
[403835578,1769580641587,-250.0,0.00016051,2]
[403835579,1769580641597,-151.0,0.00016051,2]
[403835580,1769580641606,-250.0,0.00016051,2]
[403835581,1769580641616,-250.0,0.00016051,2]
[403835582,1769580641627,-250.0,0.00016051,2]
[403835583,1769580641637,-250.0,0.00016051,2]
[403835584,1769580641647,-854.2589148,0.00016051,2]
[403835585,1769580641657,-500.0,0.00016051,2]
[403835586,1769580641666,-500.0,0.00016051,2]
[403835587,1769580641675,-503.77912883,0.00016051,2]
[403835588,1769580641684,-500.0,0.00016051,2]
[403835589,1769580641694,-500.0,0.00016051,2]
[403835590,1769580641703,-500.0,0.00016051,2]
[403835591,1769580641712,-500.0,0.00016051,2]
[403835592,1769580641721,-250.0,0.00016051,2]
[403835593,1769580641731,-381.30596867,0.00016051,2]
[403835594,1769580641740,-250.0,0.00016051,2]
[403835595,1769580641748,-151.0,0.00016051,2]
[403835596,1769580641758,-250.0,0.00016051,2]
[403835597,1769580641767,-151.0,0.00016051,2]
[403835598,1769580641776,-250.0,0.00016051,2]
[403835599,1769580641785,-151.0,0.00016051,2]
[403835600,1769580641793,-250.0,0.00016051,2]
[403835601,1769580641802,-151.0,0.00016051,2]
[403835602,1769580641811,-153.67529487,0.00016051,2]
[403835603,1769580641820,-151.0,0.00016051,2]
[403835604,1769580641829,-151.0,0.00016051,2]
[403835605,1769580641838,-151.0,0.00016051,2]
[403835606,1769580641847,-151.0,0.00016051,2]
[403835607,1769580641855,-151.0,0.00016051,2]
[403835608,1769580641865,-151.0,0.00016051,2]
[403835609,1769580641874,-151.0,0.00016051,2]
[403835610,1769580641883,-500.0,0.00016051,2]
[403835611,1769580641891,-500.0,0.00016051,2]
[403835612,1769580641900,-500.0,0.00016051,2]
[403835613,1769580641909,-500.0,0.00016051,2]
[403835614,1769580641919,-500.0,0.00016051,2]
[403835615,1769580641928,-500.0,0.00016051,2]
[403835616,1769580641937,-500.0,0.00016051,2]
[403835617,1769580641946,-500.0,0.00016051,2]
[403835618,1769580641955,-411.49445139,0.00016051,2]
[403835619,1769580641964,-3000.0,0.00016051,2]
[403835620,1769580641974,-3000.0,0.00016051,2]
[403835621,1769580641983,-3000.0,0.00016051,2]
[403835622,1769580641993,-2000.0,0.00016051,2]
[403835623,1769580642002,-2000.0,0.00016051,2]
[403835624,1769580642011,-161.75816476,0.00016051,2]
[403835625,1769580642020,-270.0455652,0.00016054,2]
[403835626,1769580642029,-502.81527138,0.0001606,2]
[403835627,1769580642038,-183.20047453,0.0001606,2]
[403835628,1769580642046,-500.0,0.0001606,2]
[403835629,1769580642055,-500.0,0.0001606,2]
[403835630,1769580642065,-500.0,0.0001606,2]
[403835631,1769580642074,-500.0,0.0001606,2]
[403835632,1769580642083,-500.0,0.0001606,2]
[403835633,1769580642093,-524.93822417,0.0001606,2]
[403835634,1769580642104,-560.97832733,0.0001606,2]
[403835635,1769580642114,-500.0,0.0001606,2]
[403835636,1769580642123,-511.31408016,0.0001606,2]
[403835637,1769580642133,-500.0,0.0001606,2]
[403835638,1769580642142,-500.0,0.0001606,2]
[403835639,1769580642151,-500.0,0.0001606,2]
[403835640,1769580642161,-152.5,0.00016105,2]
[403835641,1769580642171,-558.0,0.00016106,2]
[403835642,1769580642183,-500.0,0.00016106,2]
[403835643,1769580642192,-500.0,0.00016106,2]
[403835644,1769580642200,-280.03725112,0.00016109,2]
[403835645,1769580642210,-720.65,0.00016148,2]
[403835646,1769580642220,-558.0,0.00016161,2]
[403835647,1769580642229,-500.0,0.00016161,2]
[403835648,1769580642239,-500.0,0.00016161,2]
[403835649,1769580642249,-290.39862941,0.00016164,2]
[403835650,1769580642260,-2728.81816923,0.00016167,2]
[403835651,1769580642270,-558.0,0.00016215,2]
[403835652,1769580642282,-500.0,0.00016215,2]
[403835653,1769580642291,-500.0,0.00016215,2]
[403835654,1769580642302,-10451.77997214,0.00016216,2]
[403835655,1769580642312,-10694.12171151,0.00016216,2]
[403835656,1769580642323,-181.08010149,0.00016217,2]
[403835657,1769580642332,-301.1433787,0.00016219,2]
[403835658,1769580642343,-200.0,0.00016223,2]
[403835659,1769580642354,-218.94503066,0.00016235,2]
[403835660,1769580642363,-4956.09675,0.00016245,2]
[403835661,1769580642373,-15374.3426553,0.00016245,2]
[403835662,1769580642384,-6620.3000986,0.00016245,2]
[403835663,1769580642393,-2500.6377139,0.00016245,2]
[403835664,1769580642402,-516.55,0.00016247,2]
[403835665,1769580642410,-558.0,0.0001627,2]
[403835666,1769580642420,-150.80019516,0.0001627,2]
[403835667,1769580642429,-500.0,0.0001627,2]
[403835668,1769580642439,-1000.0,0.00016283,2]
[403835669,1769580642447,-558.0,0.00016325,2]
[403835670,1769580642458,-500.0,0.00016325,2]
[403835671,1769580642467,-501.27356282,0.00016373,2]
[403835672,1769580642475,-502.97428002,0.00016373,2]
[403835673,1769580642484,-539.78935463,0.00016373,2]
[403835674,1769580642493,-501.53607282,0.00016373,2]
[403835675,1769580642502,-500.0,0.00016373,2]
[403835676,1769580642511,-160.17647728,0.00016373,2]
[403835677,1769580642521,-502.66827993,0.00016373,2]
[403835678,1769580642531,-500.0,0.00016373,2]
[403835679,1769580642541,-160.1775309,0.00016373,2]
[403835680,1769580642550,-156.16956457,0.00016373,2]
[403835681,1769580642559,-500.93042604,0.00016373,2]
[403835682,1769580642570,-193.55647902,0.00016373,2]
[403835683,1769580642580,-173.57092729,0.00016373,2]
[403835684,1769580642590,-558.0,0.0001638,2]
[403835685,1769580642600,-500.0,0.0001638,2]
[403835686,1769580642609,-457.0,0.00016401,2]
[403835687,1769580642617,-5569.86792419,0.00016402,2]
[403835688,1769580642626,-2000.0,0.00016416,2]
[403835689,1769580642636,-2000.0,0.00016416,2]
[403835690,1769580642645,-2000.0,0.00016416,2]
[403835691,1769580642654,-2000.0,0.00016416,2]
[403835693,1769580642663,-414.896,0.00016416,2]
[403835695,1769580642672,-720.65,0.00016422,2]
[403835696,1769580642681,-10451.77997214,0.00016426,2]
[403835697,1769580642690,-10694.12171151,0.00016426,2]
[403835698,1769580642700,-558.0,0.00016435,2]
[403835699,1769580642708,-500.0,0.00016435,2]
[403835700,1769580642717,-2395.93,0.00016438,2]
[403835701,1769580642727,-2395.93,0.00016438,2]
[403835702,1769580642735,-2395.93,0.00016438,2]
[403835703,1769580642745,-2395.93,0.00016438,2]
[403835704,1769580642762,-2395.93,0.00016438,2]
[403835705,1769580642771,-2395.93,0.00016438,2]
[403835706,1769580642780,-2395.93,0.00016438,2]
[403835707,1769580642789,-2395.93,0.00016438,2]
[403835708,1769580642799,-2395.93,0.00016438,2]
[403835709,1769580642808,-2395.93,0.00016438,2]
[403835710,1769580642820,-2395.93,0.00016438,2]
[403835711,1769580642830,-2395.93,0.00016438,2]
[403835712,1769580642842,-2395.93,0.00016438,2]
[403835713,1769580642852,-2395.93,0.00016438,2]
[403835714,1769580642863,-2395.93,0.00016438,2]
[403835715,1769580642872,-2395.93,0.00016438,2]
[403835716,1769580642881,-2395.93,0.00016438,2]
[403835717,1769580642890,-2395.93,0.00016438,2]
[403835718,1769580642901,-2395.93,0.00016438,2]
[403835719,1769580642910,-2395.93,0.00016438,2]
[403835720,1769580642918,-2395.93,0.00016438,2]
[403835721,1769580642928,-2395.93,0.00016438,2]
[403835722,1769580642937,-2395.93,0.00016438,2]
[403835723,1769580642947,-2396.0314044,0.00016438,2]
[403835724,1769580642956,-544.60815205,0.00016438,2]
[403835725,1769580642965,-500.0,0.00016438,2]
[403835726,1769580642974,-2000.0,0.00016438,2]
[403835727,1769580642983,-1034.20432978,0.0001647,2]
[403835728,1769580642993,-407.56057681,0.00016477,2]
[403835729,1769580643003,-558.0,0.00016489,2]
[403835730,1769580643012,-603.52186183,0.00016489,2]
[403835731,1769580643022,-578.39080156,0.00016528,2]
[403835732,1769580643031,-443.0,0.00016528,2]
[403835733,1769580643040,-558.0,0.00016544,2]
[403835734,1769580643050,-1000.0,0.0001657,2]
[403835735,1769580643059,-558.0,0.00016599,2]
[403835736,1769580643068,-885.86649465,0.00016599,2]
[403835737,1769580643079,-10451.77997214,0.00016637,2]
[403835738,1769580643091,-10694.12171151,0.00016637,2]
[403835739,1769580643102,-558.0,0.00016654,2]
[403835740,1769580643112,-500.0,0.00016669,2]
[403835741,1769580643121,-500.0,0.00016669,2]
[403835742,1769580643131,-2500.0,0.00016674,2]
[403835743,1769580643141,-300.0,0.00016674,2]
[403835744,1769580643150,-600.0,0.00016674,2]
[403835745,1769580643446,-600.0,0.00016674,2]
[403835746,1769580643458,-193.0,0.00016674,2]
[403835747,1769580643467,-195.0,0.00016674,2]
[403835748,1769580643477,-250.0,0.00016674,2]
[403835749,1769580643487,-10076.80540011,0.00016692,2]
[403835750,1769580643498,-720.65,0.00016696,2]
[403835751,1769580643508,-510.0,0.00016699,2]
[403835752,1769580643521,-558.0,0.00016709,2]
[403835753,1769580643531,-500.0,0.00016716,2]
[403835754,1769580643540,-150.0,0.00016716,2]
[403835755,1769580643549,-500.0,0.00016716,2]
[403835756,1769580643558,-150.0,0.00016716,2]
[403835757,1769580643567,-150.0,0.00016716,2]
[403835758,1769580643576,-150.0,0.00016716,2]
[403835759,1769580643584,-150.0,0.00016716,2]
[403835760,1769580643595,-150.0,0.00016716,2]
[403835761,1769580643604,-150.0,0.00016716,2]
[403835762,1769580643615,-150.0,0.00016716,2]
[403835763,1769580643625,-250.0,0.00016759,2]
[403835764,1769580643635,-5075.37527096,0.00016759,2]
[403835765,1769580643643,-558.0,0.00016763,2]
[403835766,1769580643652,-187.78006525,0.00016765,2]
[403835767,1769580643662,-500.0,0.00016771,2]
[403835768,1769580643672,-150.0,0.00016771,2]
[403835769,1769580643681,-500.0,0.00016771,2]
[403835770,1769580643691,-150.0,0.00016771,2]
[403835771,1769580643702,-150.0,0.00016771,2]
[403835772,1769580643711,-150.00502442,0.00016788,2]
[403835773,1769580643721,-1000.0,0.000168,6]
[403835774,1769580643731,-500.0,0.00016805,2]
[403835775,1769580643743,-575.22582116,0.00016805,2]
[403835776,1769580643752,-500.0,0.00016811,2]
[403835777,1769580643762,-500.0,0.00016811,2]
[403835778,1769580643773,-500.0,0.00016811,2]
[403835779,1769580643783,-500.0,0.00016811,2]
[403835780,1769580643792,-500.0,0.00016811,2]
[403835781,1769580643804,-500.0,0.00016811,2]
[403835782,1769580643815,-500.0,0.00016811,2]
[403835783,1769580643823,-500.0,0.00016811,2]
[403835784,1769580643832,-500.0,0.00016811,2]
[403835785,1769580643842,-500.0,0.00016811,2]
[403835786,1769580643851,-504.97053901,0.00016811,2]
[403835787,1769580643861,-537.84011812,0.00016811,2]
[403835788,1769580643871,-298.742,0.00016811,2]
[403835789,1769580643879,-15783.3315615,0.00016812,2]
[403835790,1769580643888,-272934.9336598,0.00016812,2]
[403835791,1769580643897,-151.0,0.00016812,2]
[403835792,1769580643906,-151.0,0.00016812,2]
[403835793,1769580643917,-151.0,0.00016812,2]
[403835794,1769580643926,-1072.691392,0.00016812,2]
[403835795,1769580643935,-1072.691392,0.00016812,2]
[403835796,1769580643944,-1072.691392,0.00016812,2]
[403835797,1769580643953,-1072.691392,0.00016812,2]
[403835798,1769580643963,-250.377259,0.00016812,2]
[403835799,1769580643972,-250.377259,0.00016812,2]
[403835800,1769580643981,-250.377259,0.00016812,2]
[403835801,1769580643990,-250.377259,0.00016812,2]
[403835802,1769580643999,-151.0,0.00016812,2]
[403835803,1769580644008,-151.0,0.00016812,2]
[403835804,1769580644018,-796.731528,0.00016812,2]
[403835805,1769580644027,-796.731528,0.00016812,2]
[403835806,1769580644036,-796.731528,0.00016812,2]
[403835807,1769580644045,-796.731528,0.00016812,2]
[403835808,1769580644054,-519.705503,0.00016812,2]
[403835809,1769580644064,-519.705503,0.00016812,2]
[403835810,1769580644073,-519.705503,0.00016812,2]
[403835811,1769580644083,-519.705503,0.00016812,2]
[403835812,1769580644092,-208.614424,0.00016812,2]
[403835813,1769580644104,-208.614424,0.00016812,2]
[403835814,1769580644113,-208.614424,0.00016812,2]
[403835815,1769580644123,-208.614424,0.00016812,2]
[403835816,1769580644133,-558.0,0.00016818,2]
[403835817,1769580644143,-550.0,0.00016826,2]
[403835818,1769580644152,-150.0,0.00016826,2]
[403835819,1769580644162,-500.0,0.00016826,2]
[403835820,1769580644171,-200.0,0.00016826,2]
[403835821,1769580644182,-197.11274322,0.00016826,2]
[403835822,1769580644191,-705.15097,0.0001683,2]
[403835823,1769580644200,-705.15097,0.0001683,2]
[403835824,1769580644210,-604.41511,0.0001683,2]
[403835825,1769580644219,-705.15096,0.0001683,2]
[403835826,1769580644227,-705.15096,0.0001683,2]
[403835827,1769580644236,-604.41511,0.0001683,2]
[403835828,1769580644245,-10451.77997214,0.00016847,2]
[403835829,1769580644255,-10694.12171151,0.00016847,2]
[403835830,1769580644263,-2000.0,0.00016861,2]
[403835831,1769580644273,-558.0,0.00016873,2]
[403835832,1769580644281,-150.0,0.0001688,2]
[403835833,1769580644290,-250.0,0.0001688,2]
[403835834,1769580644299,-1511.0,0.00016883,2]
[403835835,1769580644308,-2100.0,0.000169,6]
[403835836,1769580644317,-197.48490584,0.000169,2]
[403835837,1769580644327,-345.1515736,0.000169,2]
[403835838,1769580644335,-9058.37508753,0.000169,2]
[403835839,1769580644344,-501.11024626,0.00016921,2]
[403835840,1769580644353,-198.64506344,0.00016921,2]
[403835841,1769580644364,-558.0,0.00016928,2]
[403835842,1769580644373,-215.43199043,0.00016935,2]
[403835843,1769580644381,-720.65,0.0001697,2]
[403835844,1769580644390,-8620.0,0.00016977,2]
[403835845,1769580644399,-1075.55881045,0.00016977,2]
[403835846,1769580644408,-1897.41323169,0.00016977,2]
[403835847,1769580644417,-2838.41671778,0.00016977,2]
[403835848,1769580644426,-3840.4773,0.00016977,2]
[403835849,1769580644435,-558.0,0.00016982,2]
[403835850,1769580644444,-500.0,0.00016983,2]
[403835851,1769580644454,-516.55,0.00016986,2]
[403835852,1769580644463,-503.01886942,0.00016999,2]
[403835853,1769580644471,-500.0,0.00016999,2]
[403835854,1769580644481,-515.28066526,0.00016999,2]
[403835855,1769580644490,-500.0,0.00016999,2]
[403835856,1769580644499,-223430.49409216,0.00017,2]
[403835857,1769580644507,-151.0,0.00017,2]
[403835858,1769580644516,-151.0,0.00017,2]
[403835859,1769580644525,-249.487899,0.00017,2]
[403835860,1769580644534,-249.487899,0.00017,2]
[403835861,1769580644543,-249.487899,0.00017,2]
[403835862,1769580644552,-249.487899,0.00017,2]
[403835863,1769580644561,-250.0,0.00017,2]
[403835864,1769580644570,-151.0,0.00017,2]
[403835865,1769580644579,-151.0,0.00017,2]
[403835866,1769580644587,-151.0,0.00017,2]
[403835867,1769580644596,-153.48077,0.00017,2]
[403835868,1769580644605,-1072.691392,0.00017,2]
[403835869,1769580644615,-1072.691392,0.00017,2]
[403835870,1769580644623,-1072.691392,0.00017,2]
[403835871,1769580644632,-1072.691392,0.00017,2]
[403835872,1769580644642,-250.377259,0.00017,2]
[403835873,1769580644651,-250.377259,0.00017,2]
[403835874,1769580644660,-250.377259,0.00017,2]
[403835875,1769580644669,-250.377259,0.00017,2]
[403835876,1769580644678,-151.0,0.00017,2]
[403835877,1769580644687,-151.0,0.00017,2]
[403835878,1769580644696,-796.731528,0.00017,2]
[403835879,1769580644704,-796.731528,0.00017,2]
[403835880,1769580644713,-796.731528,0.00017,2]
[403835881,1769580644727,-796.731528,0.00017,2]
[403835882,1769580644736,-200.0,0.00017,2]
[403835883,1769580644745,-519.705503,0.00017,2]
[403835884,1769580644754,-519.705503,0.00017,2]
[403835885,1769580644764,-519.705503,0.00017,2]
[403835886,1769580644773,-519.705503,0.00017,2]
[403835887,1769580644782,-208.614424,0.00017,2]
[403835888,1769580644792,-208.614424,0.00017,2]
[403835889,1769580644801,-208.614424,0.00017,2]
[403835890,1769580644810,-1180.19,0.00017,2]
[403835891,1769580644819,-1665.43,0.00017,2]
[403835892,1769580644828,-344.0,0.00017012,2]
[403835893,1769580644837,-481.04,0.00017017,2]
[403835894,1769580644846,-571.35924827,0.00017037,2]
[403835895,1769580644856,-334.5472959,0.00017038,2]
[403835896,1769580644865,-10451.77997214,0.00017058,2]
[403835897,1769580644875,-10694.12171151,0.00017058,2]
[403835898,1769580644884,-443.0,0.00017089,2]
[403835899,1769580644893,-1680.0,0.00017125,2]
[403835900,1769580644903,-435.04,0.0001714,2]
[403835901,1769580644915,-918.64355495,0.00017147,2]
[403835902,1769580644926,-200.0,0.0001717,2]
[403835903,1769580644935,-225.4,0.00017194,2]
[403835904,1769580644945,-2309.855,0.00017238,2]
[403835905,1769580644955,-203.626,0.00017238,2]
[403835906,1769580644964,-3370.0,0.00017238,2]
[403835907,1769580644973,-720.65,0.00017244,2]
[403835908,1769580644983,-1000.0,0.00017267,2]
[403835909,1769580644993,-10451.77997214,0.00017268,2]
[403835910,1769580645002,-10694.12171151,0.00017268,2]
[403835911,1769580645011,-194.72792766,0.00017313,2]
[403835912,1769580645021,-4832.0,0.00017358,2]
[403835913,1769580645030,-200.0,0.0001736,2]
[403835914,1769580645040,-5888.0,0.00017361,2]
[403835915,1769580645050,-166.66,0.00017375,2]
[403835916,1769580645060,-5888.0,0.00017391,2]
[403835917,1769580645069,-5888.0,0.00017413,2]
[403835918,1769580645079,-5888.0,0.0001742,2]
[403835919,1769580645089,-344.0,0.00017467,2]
[403835920,1769580645101,-500.0,0.00017478,2]
[403835921,1769580645116,-10451.77997214,0.00017479,2]
[403835922,1769580645128,-10694.12171151,0.00017479,2]
[403835923,1769580645139,-166.28,0.00017508,2]
[403835924,1769580645152,-720.65,0.00017518,2]
[403835925,1769580645162,-4934.0,0.00017541,2]
[403835926,1769580645171,-150.173,0.000176,2]
[403835927,1769580645183,-150.149,0.000176,2]
[403835928,1769580645192,-1414.751,0.000176,2]
[403835929,1769580645201,-3487.934,0.000176,2]
[403835930,1769580645211,-617.145,0.000176,2]
[403835931,1769580645220,-1338.52,0.000176,2]
[403835932,1769580645229,-184.736,0.000176,2]
[403835933,1769580645238,-1274.033,0.000176,2]
[403835934,1769580645249,-6572.0,0.000176,2]
[403835935,1769580645259,-567.0,0.000176,2]
[403835936,1769580645269,-3200.0,0.000176,6]
[403835937,1769580645280,-877.25345748,0.00017634,2]
[403835938,1769580645293,-1010.53040663,0.0001764,2]
[403835939,1769580645305,-243.65670637,0.00017657,2]
[403835940,1769580645315,-10451.77997214,0.00017689,2]
[403835941,1769580645325,-10694.12171151,0.00017689,2]
[403835942,1769580645335,-952.63336648,0.00017695,2]
[403835943,1769580645345,-4300.0,0.000177,6]
[403835944,1769580645355,-516.55,0.00017724,2]
[403835945,1769580645365,-5888.0,0.00017725,2]
[403835946,1769580645375,-435.04,0.00017738,2]
[403835947,1769580645384,-158.70124471,0.00017747,2]
[403835948,1769580645394,-5122.03509609,0.00017761,2]
[403835949,1769580645403,-720.66857683,0.00017792,2]
[403835950,1769580645414,-158.72,0.00017798,2]
[403835951,1769580645423,-249.487899,0.000178,2]
[403835952,1769580645432,-249.487899,0.000178,2]
[403835953,1769580645442,-249.487899,0.000178,2]
[403835954,1769580645451,-249.487899,0.000178,2]
[403835955,1769580645460,-208.614424,0.000178,2]
[403835956,1769580645469,-208.614424,0.000178,2]
[403835957,1769580645478,-208.614424,0.000178,2]
[403835958,1769580645488,-5400.0,0.000178,6]
[403835959,1769580645497,-201.93286099,0.00017861,2]
[403835960,1769580645506,-166.66,0.00017897,2]
[403835961,1769580645516,-151.0,0.00017898,2]
[403835962,1769580645526,-660.0,0.00017899,2]
[403835963,1769580645536,-151.0,0.000179,2]
[403835964,1769580645545,-151.0,0.000179,2]
[403835965,1769580645555,-10000.0,0.000179,2]
[403835966,1769580645564,-10451.77997214,0.000179,2]
[403835967,1769580645573,-1000.0,0.000179,6]
[403835968,1769580645583,-250.377259,0.000179,2]
[403835969,1769580645592,-250.377259,0.000179,2]
[403835970,1769580645603,-250.377259,0.000179,2]
[403835971,1769580645613,-250.377259,0.000179,2]
[403835972,1769580645622,-228.23051518,0.000179,3]
[403835973,1769580645631,-151.0,0.000179,2]
[403835974,1769580645640,-151.0,0.000179,2]
[403835975,1769580645650,-5423.7170479,0.000179,2]
[403835976,1769580645659,-10694.12171151,0.000179,2]
[403835977,1769580645668,-217.13537466,0.000179,2]
[403835978,1769580645677,-3370.0,0.00017911,2]